[Event "GER-ch Youth-U12 2024"]
[Site "Willingen"]
[Date "2024.05.23"]
[Round "7"]
[White "Lanert, Theodor"]
[Black "Wettstein, Levin"]
[Result "0-1"]
[ECO "C54"]
[WhiteElo "1742"]
[BlackElo "1753"]
[Annotator "NA RC"]
[PlyCount "122"]
[EventDate "2022.06.05"]
[EventType "swiss"]
[EventRounds "9"]
[EventCountry "GER"]
[SourceTitle "playchess.com"]
[Source "ChessBase"]
[SourceQuality "1"]
[TimeControl "40/4500+30:900+30"]

1. e4 {[%emt 0:00:00]} e5 {[%emt 0:00:00]} 2. Nf3 {[%emt 0:00:00]} Nc6 {[%emt 0:00:00]} 3. Bc4 {[%emt 0:00:00]} Bc5 {[%emt 0:00:00]} 4. c3 {[%emt 0:00:00]} Nf6 {[%emt 0:00:00]} 5. d4 {[%emt 0:00:00]} exd4 {[%emt 0:00:00]} 6. b4 {[%emt 0:00:00]} Bb6 {[%emt 0:00:00]} 7. e5 {[%emt 0:00:00]} d5 {[%emt 0:00:00]} 8. exf6 {[%emt 0:00:00]} dxc4 {[%emt 0:00:00]} 9. Qe2+ {[%emt 0:00:00]} Be6 {[%emt 0:00:00]} 10. b5 {[%emt 0:00:00]} d3 {[%emt 0:00:00]} 11. Qe4 {[%emt 0:00:00]} Na5 {[%emt 0:00:00]} 12. fxg7 {[%emt 0:00:00]} Rg8 {[%emt 0:00:34]} 13. Qxh7 {[%emt 0:00:12]} Kd7 {[%emt 0:00:12]} 14. Ba3 {[%emt 0:02:50]} Qf6 {[%emt 0:02:45]} 15. Bf8 {[%emt 0:02:32]} Re8 {[%emt 0:01:36]} 16. O-O {[%emt 0:09:38]} Rexf8 {[%emt 0:01:23]} 17. gxf8=N+ {[%emt 0:06:12]} Rxf8 {[%emt 0:00:19]} 18. Qh4 {[%emt 0:02:00]} Qxh4 {[%emt 0:01:14]} 19. Nxh4 {[%emt 0:00:09]} Rg8 {[%emt 0:00:17]} 20. g3 {[%emt 0:06:23]} c6 {[%emt 0:00:36]} 21. a4 {[%emt 0:04:04]} Bd8 {[%emt 0:00:46]} 22. Nf3 {[%emt 0:01:53]} Bf6 {[%emt 0:03:11]} 23. Nfd2 {[%emt 0:03:35]} Bd5 {[%emt 0:01:10]} 24. Re1 {[%emt 0:03:02]} Bh8 {[%emt 0:03:26]} 25. f4 {[%emt 0:03:20]} f5 {[%emt 0:00:47]} 26. Kf2 {[%emt 0:00:30]} Bf6 {[%emt 0:00:47]} 27. Nf3 {[%emt 0:00:37]} Nb3 {[%emt 0:01:01]} 28. Ra2 {[%emt 0:03:34]} Bd8 {[%emt 0:00:34]} 29. Ne5+ {[%emt 0:00:42]} Kd6 {[%emt 0:00:10]} 30. h4 {[%emt 0:07:43]} Bb6+ {[%emt 0:00:21]} 31. Kf1 {[%emt 0:07:08]} Rxg3 {[%emt 0:00:15]} 32. Rf2 {[%emt 0:00:28]} Rh3 {[%emt 0:01:18]} 33. Nxc4+ {[%emt 0:02:15]} Bxc4 {[%emt 0:00:21]} 34. Kg2 {[%emt 0:02:04]} Bxf2 {[%emt 0:00:15]} 35. Kxf2 {[%emt 0:03:49]} Rxh4 {[%emt 0:00:41]} 36. Rd1 {[%emt 0:01:29]} Rxf4+ {[%emt 0:00:32]} 37. Ke3 {[%emt 0:00:22]} Re4+ {[%emt 0:02:43]} 38. Kf3 {[%emt 0:00:24]} Bd5 {[%emt 0:00:27]} 39. Rxd3 {[%emt 0:02:29]} f4 {[%emt 0:00:27]} 40. Kg4 {[%emt 0:00:54]} Re3 {[%emt 0:00:40]} 41. Rd1 {[%emt 0:16:01]} cxb5 {[%emt 0:16:13]} 42. axb5 {[%emt 0:00:22]} f3 {[%emt 0:00:33]} 43. Kf4 {[%emt 0:07:18]} Re4+ {[%emt 0:00:21]} 44. Kg3 {[%emt 0:00:09]} Kc5 {[%emt 0:00:15]} 45. Rd3 {[%emt 0:00:49]} Re8 {[%emt 0:00:51]} 46. Na3 {[%emt 0:01:34]} Nc1 {[%emt 0:00:51]} 47. Rd1 {[%emt 0:00:47]} Ne2+ {[%emt 0:00:15]} 48. Kf2 {[%emt 0:00:02]} Nxc3 {[%emt 0:00:19]} 49. Rc1 {[%emt 0:00:10]} Kb4 {[%emt 0:00:42]} 50. Nc2+ {[%emt 0:00:13]} Kxb5 {[%emt 0:00:18]} 51. Ne3 {[%emt 0:00:36]} Kb4 {[%emt 0:00:36]} 52. Nxd5+ {[%emt 0:02:01]} Nxd5 {[%emt 0:00:08]} 53. Kxf3 {[%emt 0:00:03]} Nc3 {[%emt 0:00:26]} 54. Rc2 {[%emt 0:00:14]} Kb3 {[%emt 0:00:05]} 55. Rc1 {[%emt 0:00:04]} a5 {[%emt 0:00:05]} 56. Rh1 {[%emt 0:00:35]} a4 {[%emt 0:00:05]} 57. Rh6 {[%emt 0:00:05]} a3 {[%emt 0:00:10]} 58. Rb6+ {[%emt 0:00:11]} Kc2 {[%emt 0:00:05]} 59. Rxb7 {[%emt 0:00:28]} a2 {[%emt 0:00:12]} 60. Ra7 {[%emt 0:00:18]} Kb2 {[%emt 0:00:42]} 61. Rb7+ {[%emt 0:00:10]} Ka3 {[%emt 0:00:05]} 0-1

[Event "GER-ch Youth-U12 2024"]
[Site "Willingen"]
[Date "2024.05.23"]
[Round "7"]
[White "Schulz, Robin"]
[Black "Sasikumar Anitha, Sarvesh"]
[Result "0-1"]
[ECO "C02"]
[WhiteElo "1730"]
[BlackElo "1703"]
[Annotator "NA RC"]
[PlyCount "88"]
[EventDate "2022.06.05"]
[EventType "swiss"]
[EventRounds "9"]
[EventCountry "GER"]
[SourceTitle "playchess.com"]
[Source "ChessBase"]
[SourceQuality "1"]
[TimeControl "40/4500+30:900+30"]

1. e4 {[%emt 0:00:00]} e6 {[%emt 0:00:00]} 2. d4 {[%emt 0:00:00]} d5 {[%emt 0:00:00]} 3. e5 {[%emt 0:00:00]} c5 {[%emt 0:00:00]} 4. c3 {[%emt 0:00:00]} Nc6 {[%emt 0:00:00]} 5. Nf3 {[%emt 0:00:00]} Qb6 {[%emt 0:00:00]} 6. a3 {[%emt 0:00:00]} c4 {[%emt 0:00:00]} 7. Be2 {[%emt 0:00:00]} Bd7 {[%emt 0:00:00]} 8. Nbd2 {[%emt 0:00:00]} Na5 {[%emt 0:00:00]} 9. O-O {[%emt 0:00:00]} Rc8 {[%emt 0:00:00]} 10. Rb1 {[%emt 0:00:00]} Be7 {[%emt 0:00:00]} 11. Re1 {[%emt 0:00:00]} Nh6 {[%emt 0:03:27]} 12. Qc2 {[%emt 0:00:00]} Nf5 {[%emt 0:05:08]} 13. h3 {[%emt 0:00:17]} O-O {[%emt 0:05:14]} 14. g4 {[%emt 0:12:25]} Nh4 {[%emt 0:03:58]} 15. Nxh4 {[%emt 0:00:57]} Bxh4 {[%emt 0:00:07]} 16. Nf3 {[%emt 0:00:50]} Be7 {[%emt 0:03:24]} 17. Be3 {[%emt 0:03:10]} Nb3 {[%emt 0:06:58]} 18. Bd1 {[%emt 0:01:46]} f5 {[%emt 0:13:34]} 19. g5 {[%emt 0:05:10]} f4 {[%emt 0:03:06]} 20. Bc1 {[%emt 0:00:03]} Be8 {[%emt 0:01:05]} 21. Qe2 {[%emt 0:00:17]} Bg6 {[%emt 0:02:44]} 22. Bc2 {[%emt 0:00:17]} Bxc2 {[%emt 0:04:35]} 23. Qxc2 {[%emt 0:00:38]} Qd8 {[%emt 0:00:52]} 24. g6 {[%emt 0:06:25]} h6 {[%emt 0:06:11]} 25. Kh2 {[%emt 0:04:40]} Rf5 {[%emt 0:03:49]} 26. Rg1 {[%emt 0:00:25]} Qe8 {[%emt 0:01:52]} 27. Bd2 {[%emt 0:07:32]} Qd7 {[%emt 0:07:59]} 28. Rg2 {[%emt 0:07:16]} Rcf8 {[%emt 0:00:46]} 29. Re1 {[%emt 0:02:02]} Qe8 {[%emt 0:02:23]} 30. h4 {[%emt 0:02:40]} Qd8 {[%emt 0:01:53]} 31. Kh3 {[%emt 0:00:44]} Rh5 {[%emt 0:04:08]} 32. Kg4 {[%emt 0:10:54]} Rhf5 {[%emt 0:04:13]} 33. h5 {[%emt 0:01:21]} Qe8 {[%emt 0:01:17]} 34. Rh2 {[%emt 0:03:54]} Bd8 {[%emt 0:00:31]} 35. Rh3 {[%emt 0:10:20]} Qe7 {[%emt 0:00:34]} 36. Nh2 {[%emt 0:00:46]} Rg5+ {[%emt 0:01:16]} 37. Kf3 {[%emt 0:00:20]} Rff5 {[%emt 0:00:20]} 38. Bxf4 {[%emt 0:01:07]} Rxh5 {[%emt 0:00:49]} 39. Rxh5 {[%emt 0:01:10]} Rxh5 {[%emt 0:00:07]} 40. Ke2 {[%emt 0:00:46]} Qf8 {[%emt 0:00:38]} 41. Ke3 {[%emt 0:18:59]} Rh3+ {[%emt 0:15:46]} 42. f3 {[%emt 0:00:25]} Bg5 {[%emt 0:01:05]} 43. Bxg5 {[%emt 0:00:11]} hxg5 {[%emt 0:00:07]} 44. Qg2 {[%emt 0:00:39]} Qf4+ {[%emt 0:00:10]} 0-1

[Event "GER-ch Youth-U12 2024"]
[Site "Willingen"]
[Date "2024.05.23"]
[Round "7"]
[White "Vinogradov, Ilia"]
[Black "Draude, Theo"]
[Result "1-0"]
[ECO "B96"]
[WhiteElo "1723"]
[BlackElo "1731"]
[Annotator "NA RC"]
[PlyCount "39"]
[EventDate "2022.06.05"]
[EventType "swiss"]
[EventRounds "9"]
[EventCountry "GER"]
[SourceTitle "playchess.com"]
[Source "ChessBase"]
[SourceQuality "1"]
[TimeControl "40/4500+30:900+30"]

1. e4 {[%emt 0:00:00]} c5 {[%emt 0:00:00]} 2. Nf3 {[%emt 0:00:00]} d6 {[%emt 0:00:00]} 3. d4 {[%emt 0:00:00]} cxd4 {[%emt 0:00:00]} 4. Nxd4 {[%emt 0:00:00]} Nf6 {[%emt 0:00:00]} 5. Nc3 {[%emt 0:00:00]} a6 {[%emt 0:00:00]} 6. Bg5 {[%emt 0:00:00]} e6 {[%emt 0:00:00]} 7. f4 {[%emt 0:00:00]} Qc7 {[%emt 0:00:00]} 8. Qf3 {[%emt 0:00:00]} b5 {[%emt 0:00:00]} 9. O-O-O {[%emt 0:00:00]} Bb7 {[%emt 0:00:00]} 10. Bd3 {[%emt 0:05:00]} b4 {[%emt 0:00:00]} 11. Nce2 {[%emt 0:01:33]} Nbd7 {[%emt 0:00:00]} 12. g4 {[%emt 0:03:56]} a5 {[%emt 0:00:00]} 13. Kb1 {[%emt 0:03:15]} a4 {[%emt 0:04:21]} 14. Bxf6 {[%emt 0:05:58]} gxf6 {[%emt 0:00:17]} 15. g5 {[%emt 0:17:19]} Be7 {[%emt 0:07:48]} 16. Qh5 {[%emt 0:05:01]} Nc5 {[%emt 0:08:03]} 17. gxf6 {[%emt 0:10:53]} Bxf6 {[%emt 0:05:53]} 18. Nb5 {[%emt 0:00:37]} Qe7 {[%emt 0:04:31]} 19. Nxd6+ {[%emt 0:02:19]} Kf8 {[%emt 0:00:22]} 20. Qxc5 {[%emt 0:03:59]} 1-0

[Event "GER-ch Youth-U12 2024"]
[Site "Willingen"]
[Date "2024.05.23"]
[Round "7"]
[White "Sun, Christopher"]
[Black "Prashanthakumar, Arnesh"]
[Result "1/2-1/2"]
[ECO "C54"]
[WhiteElo "1714"]
[BlackElo "1634"]
[Annotator "NA RC"]
[PlyCount "41"]
[EventDate "2022.06.05"]
[EventType "swiss"]
[EventRounds "9"]
[EventCountry "GER"]
[SourceTitle "playchess.com"]
[Source "ChessBase"]
[SourceQuality "1"]
[TimeControl "40/4500+30:900+30"]

1. e4 {[%emt 0:00:00]} e5 {[%emt 0:00:00]} 2. Nf3 {[%emt 0:00:00]} Nc6 {[%emt 0:00:00]} 3. Bc4 {[%emt 0:00:00]} Bc5 {[%emt 0:00:00]} 4. c3 {[%emt 0:00:00]} Nf6 {[%emt 0:00:00]} 5. d4 {[%emt 0:00:00]} exd4 {[%emt 0:00:00]} 6. cxd4 {[%emt 0:00:00]} Bb4+ {[%emt 0:00:00]} 7. Nbd2 {[%emt 0:00:00]} d5 {[%emt 0:00:00]} 8. exd5 {[%emt 0:00:00]} Nxd5 {[%emt 0:00:00]} 9. O-O {[%emt 0:00:00]} O-O {[%emt 0:00:00]} 10. a3 {[%emt 0:00:00]} Bxd2 {[%emt 0:00:00]} 11. Bxd2 {[%emt 0:00:00]} Bg4 {[%emt 0:03:07]} 12. Bc3 {[%emt 0:19:34]} Nxc3 {[%emt 0:11:30]} 13. bxc3 {[%emt 0:00:15]} Qf6 {[%emt 0:00:56]} 14. Be2 {[%emt 0:02:06]} Ne7 {[%emt 0:04:00]} 15. Ne5 {[%emt 0:08:41]} Bxe2 {[%emt 0:02:59]} 16. Qxe2 {[%emt 0:00:06]} Rad8 {[%emt 0:03:14]} 17. Rab1 {[%emt 0:11:16]} b6 {[%emt 0:05:35]} 18. Rfe1 {[%emt 0:09:13]} Nc6 {[%emt 0:05:54]} 19. f4 {[%emt 0:17:28]} Nxe5 {[%emt 0:01:43]} 20. fxe5 {[%emt 0:00:27]} Qe6 {[%emt 0:01:40]} 21. Qf3 {[%emt 0:10:50]} 1/2-1/2

[Event "GER-ch Youth-U12 2024"]
[Site "Willingen"]
[Date "2024.05.23"]
[Round "7"]
[White "Wagener, Nicolas"]
[Black "Fels, Mattis"]
[Result "0-1"]
[ECO "B47"]
[WhiteElo "1713"]
[BlackElo "1759"]
[Annotator "NA RC"]
[PlyCount "39"]
[EventDate "2022.06.05"]
[EventType "swiss"]
[EventRounds "9"]
[EventCountry "GER"]
[SourceTitle "playchess.com"]
[Source "ChessBase"]
[SourceQuality "1"]
[TimeControl "40/4500+30:900+30"]

1. e4 {[%emt 0:00:00]} c5 {[%emt 0:00:00]} 2. Nc3 {[%emt 0:00:00]} e6 {[%emt 0:00:00]} 3. Nge2 {[%emt 0:00:00]} Nc6 {[%emt 0:00:00]} 4. g3 {[%emt 0:00:00]} Qc7 {[%emt 0:00:00]} 5. Bg2 {[%emt 0:00:00]} a6 {[%emt 0:00:00]} 6. d4 {[%emt 0:00:00]} cxd4 {[%emt 0:00:00]} 7. Nxd4 {[%emt 0:00:00]} b5 {[%emt 0:01:12]} 8. Be3 {[%emt 0:00:00]} Bb7 {[%emt 0:01:00]} 9. f4 {[%emt 0:00:00]} Nf6 {[%emt 0:04:24]} 10. Qe2 {[%emt 0:00:00]} h5 {[%emt 0:02:37]} 11. e5 {[%emt 0:01:28]} Ng4 {[%emt 0:00:25]} 12. O-O-O {[%emt 0:00:52]} Rc8 {[%emt 0:05:06]} 13. Nxc6 {[%emt 0:05:04]} Bxc6 {[%emt 0:00:27]} 14. Bxc6 {[%emt 0:00:17]} Qxc6 {[%emt 0:00:09]} 15. h3 {[%emt 0:00:19]} Nxe3 {[%emt 0:00:34]} 16. Qxe3 {[%emt 0:00:07]} b4 {[%emt 0:00:21]} 17. Qd4 {[%emt 0:06:45]} bxc3 {[%emt 0:00:30]} 18. Rhe1 {[%emt 0:00:26]} cxb2+ {[%emt 0:01:08]} 19. Qxb2 {[%emt 0:00:08]} Ba3 {[%emt 0:00:58]} 20. Qxa3 {[%emt 0:00:31]} 0-1

[Event "GER-ch Youth-U12 2024"]
[Site "Willingen"]
[Date "2024.05.23"]
[Round "7"]
[White "Hellriegel, Hannes"]
[Black "Moskalenko, Michael"]
[Result "1-0"]
[ECO "B42"]
[WhiteElo "1701"]
[BlackElo "1574"]
[Annotator "NA RC"]
[PlyCount "77"]
[EventDate "2022.06.05"]
[EventType "swiss"]
[EventRounds "9"]
[EventCountry "GER"]
[SourceTitle "playchess.com"]
[Source "ChessBase"]
[SourceQuality "1"]
[TimeControl "40/4500+30:900+30"]

1. e4 {[%emt 0:00:00]} c5 {[%emt 0:00:00]} 2. Nf3 {[%emt 0:00:00]} e6 {[%emt 0:00:00]} 3. d4 {[%emt 0:00:00]} cxd4 {[%emt 0:00:00]} 4. Nxd4 {[%emt 0:00:00]} a6 {[%emt 0:00:00]} 5. Bd3 {[%emt 0:00:00]} Qc7 {[%emt 0:00:00]} 6. Qe2 {[%emt 0:00:00]} d6 {[%emt 0:00:00]} 7. O-O {[%emt 0:00:00]} Nf6 {[%emt 0:00:00]} 8. c4 {[%emt 0:00:00]} Be7 {[%emt 0:00:00]} 9. Nc3 {[%emt 0:00:00]} O-O {[%emt 0:00:00]} 10. Be3 {[%emt 0:00:00]} Bd7 {[%emt 0:00:00]} 11. h3 {[%emt 0:00:00]} Nc6 {[%emt 0:00:00]} 12. Nf3 {[%emt 0:00:00]} Rac8 {[%emt 0:00:00]} 13. Na4 {[%emt 0:07:58]} Nb4 {[%emt 0:11:06]} 14. Nb6 {[%emt 0:01:50]} Rcd8 {[%emt 0:11:40]} 15. Nxd7 {[%emt 0:09:53]} Nxd7 {[%emt 0:03:11]} 16. Bb1 {[%emt 0:03:28]} Nc5 {[%emt 0:15:12]} 17. a3 {[%emt 0:07:45]} Nb3 {[%emt 0:00:53]} 18. axb4 {[%emt 0:00:28]} Nxa1 {[%emt 0:00:03]} 19. Ba2 {[%emt 0:00:31]} d5 {[%emt 0:13:56]} 20. exd5 {[%emt 0:05:46]} exd5 {[%emt 0:00:12]} 21. Rxa1 {[%emt 0:04:23]} dxc4 {[%emt 0:00:19]} 22. Bxc4 {[%emt 0:01:33]} Bxb4 {[%emt 0:02:22]} 23. Bd3 {[%emt 0:10:43]} h6 {[%emt 0:03:53]} 24. Nh4 {[%emt 0:07:50]} Be7 {[%emt 0:17:37]} 25. Nf5 {[%emt 0:04:25]} Bg5 {[%emt 0:01:49]} 26. Bxg5 {[%emt 0:00:58]} hxg5 {[%emt 0:00:11]} 27. Ne7+ {[%emt 0:00:18]} Qxe7 {[%emt 0:01:25]} 28. Qxe7 {[%emt 0:00:05]} Rxd3 {[%emt 0:00:05]} 29. Qxb7 {[%emt 0:00:18]} Rfd8 {[%emt 0:01:17]} 30. Qxa6 {[%emt 0:00:20]} R3d6 {[%emt 0:00:19]} 31. Qe2 {[%emt 0:00:45]} Rd2 {[%emt 0:00:18]} 32. Qf3 {[%emt 0:01:18]} R2d3 {[%emt 0:00:11]} 33. Qg4 {[%emt 0:00:18]} R3d4 {[%emt 0:00:09]} 34. Qxg5 {[%emt 0:00:22]} R4d5 {[%emt 0:00:06]} 35. Qg3 {[%emt 0:00:37]} Rd3 {[%emt 0:00:07]} 36. f3 {[%emt 0:00:13]} Rb3 {[%emt 0:00:35]} 37. Qc7 {[%emt 0:00:54]} Rbd3 {[%emt 0:00:12]} 38. Ra7 {[%emt 0:00:19]} Rf8 {[%emt 0:00:29]} 39. b4 {[%emt 0:00:19]} 1-0

[Event "GER-ch Youth-U12 2024"]
[Site "Willingen"]
[Date "2024.05.23"]
[Round "7"]
[White "Subocz, Barbara"]
[Black "Franke, Moritz"]
[Result "0-1"]
[ECO "B22"]
[WhiteElo "1692"]
[BlackElo "1597"]
[Annotator "NA RC"]
[PlyCount "128"]
[EventDate "2022.06.05"]
[EventType "swiss"]
[EventRounds "9"]
[EventCountry "GER"]
[SourceTitle "playchess.com"]
[Source "ChessBase"]
[SourceQuality "1"]
[TimeControl "40/4500+30:900+30"]

1. e4 {[%emt 0:00:00]} c5 {[%emt 0:00:00]} 2. Nf3 {[%emt 0:00:00]} Nc6 {[%emt 0:00:00]} 3. c3 {[%emt 0:00:00]} Nf6 {[%emt 0:00:00]} 4. e5 {[%emt 0:00:00]} Nd5 {[%emt 0:00:00]} 5. Bc4 {[%emt 0:00:00]} Nb6 {[%emt 0:00:00]} 6. Bb5 {[%emt 0:00:00]} d6 {[%emt 0:00:00]} 7. d4 {[%emt 0:00:00]} cxd4 {[%emt 0:00:00]} 8. cxd4 {[%emt 0:00:00]} dxe5 {[%emt 0:00:00]} 9. Nxe5 {[%emt 0:00:00]} Bd7 {[%emt 0:00:00]} 10. Nxd7 {[%emt 0:00:00]} Qxd7 {[%emt 0:00:00]} 11. Nc3 {[%emt 0:00:00]} e6 {[%emt 0:00:00]} 12. O-O {[%emt 0:00:00]} O-O-O {[%emt 0:00:00]} 13. Qf3 {[%emt 0:00:00]} a6 {[%emt 0:00:00]} 14. Bxc6 {[%emt 0:00:01]} bxc6 {[%emt 0:00:00]} 15. a3 {[%emt 0:00:56]} Nd5 {[%emt 0:00:00]} 16. Bd2 {[%emt 0:01:20]} Nxc3 {[%emt 0:00:00]} 17. Qxc3 {[%emt 0:00:35]} Qxd4 {[%emt 0:01:07]} 18. Qxc6+ {[%emt 0:00:40]} Kb8 {[%emt 0:00:40]} 19. Be3 {[%emt 0:02:05]} Qd6 {[%emt 0:03:30]} 20. Qc3 {[%emt 0:02:18]} Qd5 {[%emt 0:02:51]} 21. Rfc1 {[%emt 0:01:47]} Bd6 {[%emt 0:01:12]} 22. Rab1 {[%emt 0:01:18]} Rc8 {[%emt 0:00:26]} 23. Qd4 {[%emt 0:01:12]} Rxc1+ {[%emt 0:00:18]} 24. Rxc1 {[%emt 0:00:39]} Qxd4 {[%emt 0:00:13]} 25. Bxd4 {[%emt 0:00:10]} f6 {[%emt 0:00:39]} 26. Rd1 {[%emt 0:00:29]} Rd8 {[%emt 0:00:16]} 27. g3 {[%emt 0:01:18]} Kb7 {[%emt 0:00:15]} 28. Bc3 {[%emt 0:02:25]} Bc7 {[%emt 0:01:01]} 29. Rb1 {[%emt 0:00:32]} Rd5 {[%emt 0:00:58]} 30. b4 {[%emt 0:00:27]} Rd3 {[%emt 0:00:37]} 31. Bb2 {[%emt 0:00:38]} Rb3 {[%emt 0:00:09]} 32. Kg2 {[%emt 0:01:06]} Be5 {[%emt 0:00:43]} 33. Kh3 {[%emt 0:00:24]} Rxb2 {[%emt 0:00:09]} 34. Rxb2 {[%emt 0:00:10]} Bxb2 {[%emt 0:00:05]} 35. a4 {[%emt 0:00:05]} Kb6 {[%emt 0:00:16]} 36. Kg4 {[%emt 0:00:18]} Kc6 {[%emt 0:00:20]} 37. Kf4 {[%emt 0:00:30]} Kd5 {[%emt 0:00:07]} 38. b5 {[%emt 0:00:18]} axb5 {[%emt 0:00:20]} 39. axb5 {[%emt 0:00:07]} Kc5 {[%emt 0:00:20]} 40. b6 {[%emt 0:00:10]} Kxb6 {[%emt 0:00:05]} 41. Ke3 {[%emt 0:15:05]} Kc5 {[%emt 0:15:05]} 42. Kf4 {[%emt 0:00:20]} Kd5 {[%emt 0:00:18]} 43. h4 {[%emt 0:00:13]} Bc1+ {[%emt 0:00:32]} 44. Kg4 {[%emt 0:00:13]} Ke5 {[%emt 0:00:45]} 45. f4+ {[%emt 0:00:12]} Ke4 {[%emt 0:00:08]} 46. Kh5 {[%emt 0:00:45]} Kf5 {[%emt 0:00:41]} 47. g4+ {[%emt 0:01:10]} Kxf4 {[%emt 0:00:08]} 48. g5 {[%emt 0:00:36]} fxg5 {[%emt 0:00:06]} 49. hxg5 {[%emt 0:00:06]} Kf5 {[%emt 0:00:16]} 50. g6 {[%emt 0:00:28]} hxg6+ {[%emt 0:00:03]} 51. Kh4 {[%emt 0:00:07]} e5 {[%emt 0:00:05]} 52. Kg3 {[%emt 0:02:21]} e4 {[%emt 0:00:05]} 53. Kf2 {[%emt 0:00:05]} e3+ {[%emt 0:00:04]} 54. Ke1 {[%emt 0:00:11]} Kf4 {[%emt 0:00:06]} 55. Ke2 {[%emt 0:00:06]} g5 {[%emt 0:00:08]} 56. Kd1 {[%emt 0:00:05]} Kf3 {[%emt 0:00:06]} 57. Ke1 {[%emt 0:00:23]} g4 {[%emt 0:00:11]} 58. Kf1 {[%emt 0:00:04]} g3 {[%emt 0:00:07]} 59. Ke1 {[%emt 0:00:05]} g2 {[%emt 0:00:07]} 60. Kd1 {[%emt 0:00:14]} g1=Q+ {[%emt 0:00:05]} 61. Kc2 {[%emt 0:00:19]} e2 {[%emt 0:00:03]} 62. Kd3 {[%emt 0:00:11]} e1=Q {[%emt 0:00:10]} 63. Kc4 {[%emt 0:00:04]} Qe4+ {[%emt 0:00:11]} 64. Kc3 {[%emt 0:00:14]} Qge3# {[%emt 0:00:45]} 0-1

[Event "GER-ch Youth-U12 2024"]
[Site "Willingen"]
[Date "2024.05.23"]
[Round "7"]
[White "Leonhardt, Max"]
[Black "Grabowski, Joshua"]
[Result "1/2-1/2"]
[ECO "E01"]
[WhiteElo "1691"]
[BlackElo "1532"]
[Annotator "NA RC"]
[PlyCount "110"]
[EventDate "2022.06.05"]
[EventType "swiss"]
[EventRounds "9"]
[EventCountry "GER"]
[SourceTitle "playchess.com"]
[Source "ChessBase"]
[SourceQuality "1"]
[TimeControl "40/4500+30:900+30"]

1. Nf3 {[%emt 0:00:00]} d5 {[%emt 0:00:00]} 2. g3 {[%emt 0:00:00]} c5 {[%emt 0:00:00]} 3. Bg2 {[%emt 0:00:00]} Nc6 {[%emt 0:00:00]} 4. c4 {[%emt 0:00:00]} e6 {[%emt 0:00:00]} 5. cxd5 {[%emt 0:00:00]} exd5 {[%emt 0:00:00]} 6. d4 {[%emt 0:00:00]} Nf6 {[%emt 0:00:00]} 7. O-O {[%emt 0:00:00]} cxd4 {[%emt 0:00:00]} 8. Nxd4 {[%emt 0:00:00]} Bc5 {[%emt 0:00:00]} 9. Nb3 {[%emt 0:00:00]} Be7 {[%emt 0:00:00]} 10. Bg5 {[%emt 0:00:00]} O-O {[%emt 0:00:00]} 11. e3 {[%emt 0:00:00]} h6 {[%emt 0:02:10]} 12. Bxf6 {[%emt 0:00:00]} Bxf6 {[%emt 0:00:35]} 13. a3 {[%emt 0:00:00]} Bxb2 {[%emt 0:03:46]} 14. Ra2 {[%emt 0:00:00]} Bf6 {[%emt 0:01:07]} 15. Bxd5 {[%emt 0:00:00]} Bf5 {[%emt 0:03:07]} 16. Bg2 {[%emt 0:00:51]} Be6 {[%emt 0:06:37]} 17. Rd2 {[%emt 0:05:18]} Qb6 {[%emt 0:01:35]} 18. Nd4 {[%emt 0:03:53]} Nxd4 {[%emt 0:01:55]} 19. exd4 {[%emt 0:00:07]} Bb3 {[%emt 0:02:04]} 20. Qf3 {[%emt 0:00:49]} Bc4 {[%emt 0:07:16]} 21. Rc1 {[%emt 0:02:34]} Ba6 {[%emt 0:06:47]} 22. Qc3 {[%emt 0:04:54]} Kh7 {[%emt 0:07:36]} 23. Bh3 {[%emt 0:06:12]} Rad8 {[%emt 0:05:14]} 24. Rcd1 {[%emt 0:00:45]} Qc6 {[%emt 0:02:34]} 25. Qxc6 {[%emt 0:01:29]} bxc6 {[%emt 0:00:22]} 26. Bg2 {[%emt 0:00:47]} Rc8 {[%emt 0:03:34]} 27. Rc1 {[%emt 0:01:23]} Rfd8 {[%emt 0:01:08]} 28. Bxc6 {[%emt 0:03:11]} Rxd4 {[%emt 0:01:39]} 29. Rxd4 {[%emt 0:02:03]} Bxd4 {[%emt 0:00:07]} 30. Be4+ {[%emt 0:00:36]} g6 {[%emt 0:00:28]} 31. Rxc8 {[%emt 0:00:40]} Bxc8 {[%emt 0:00:05]} 32. Nd2 {[%emt 0:00:22]} Bc5 {[%emt 0:00:59]} 33. a4 {[%emt 0:01:23]} Bb4 {[%emt 0:01:00]} 34. Nc4 {[%emt 0:02:01]} a5 {[%emt 0:01:36]} 35. Ne5 {[%emt 0:07:19]} Kg7 {[%emt 0:01:01]} 36. Bc2 {[%emt 0:02:59]} Kf6 {[%emt 0:02:27]} 37. f4 {[%emt 0:04:57]} Bc3 {[%emt 0:02:20]} 38. Nc4 {[%emt 0:00:38]} Ba6 {[%emt 0:01:13]} 39. Ne3 {[%emt 0:02:06]} Bd4 {[%emt 0:02:34]} 40. Kf2 {[%emt 0:00:56]} g5 {[%emt 0:03:18]} 41. Kf3 {[%emt 0:17:08]} Bb7+ {[%emt 0:15:33]} 42. Be4 {[%emt 0:00:09]} Bxe4+ {[%emt 0:02:01]} 43. Kxe4 {[%emt 0:00:08]} Bxe3 {[%emt 0:05:57]} 44. Kxe3 {[%emt 0:00:09]} Kf5 {[%emt 0:00:09]} 45. fxg5 {[%emt 0:02:00]} hxg5 {[%emt 0:01:32]} 46. h3 {[%emt 0:10:37]} Ke5 {[%emt 0:04:38]} 47. Kf3 {[%emt 0:00:00]} Kf5 {[%emt 0:00:00]} 48. h4 {[%emt 0:00:07]} gxh4 {[%emt 0:00:00]} 49. gxh4 {[%emt 0:00:08]} Kg6 {[%emt 0:00:00]} 50. Kg4 {[%emt 0:01:49]} f5+ {[%emt 0:00:00]} 51. Kf4 {[%emt 0:00:09]} Kh5 {[%emt 0:00:00]} 52. Kxf5 {[%emt 0:00:07]} Kxh4 {[%emt 0:00:00]} 53. Kf4 {[%emt 0:00:47]} Kh5 {[%emt 0:00:00]} 54. Ke5 {[%emt 0:00:31]} Kg6 {[%emt 0:00:00]} 55. Ke6 {[%emt 0:01:10]} Kg7 {[%emt 0:00:00]} 1/2-1/2